Workbook

Sheet DATOS EMPRESA
B3: Datos de la empresa
B4: Descripcion Empresa | C4: FUNDACIÓN CAMINO LEBANIEGO | H4: desc_empresa
B5: Código de Empresa | C5: =VLOOKUP(C4,ListaEmpresas,2,FALSE) -> 34 | H5: codigo_empresa
B6: Responsable | C6: MANUEL BAHÍLLO MARTÍN
B9: Datos fichero
B10: Anualidad | C10: =YEAR(NOW()) + 1 -> 2022 | H10: anualidad
B11: Fecha de creacion | C11: 2010-08-01 | H11: fecha_creacion
B13: Datos autor del fichero
B14: Nombre: | C14: MANUEL | H14: nombre
B15: Primer Apellido: | C15: BAHÍLLO | H15: apellido1
B16: Segundo Apellido: | C16: MARTÍN | H16: apellido2
B17: NIF: | C17: 13788385T | H17: nif
B18: Telefono: | C18: 683272062 | H18: telefono
B19: Email: | C19: director@caminolebaniego.com | H19: email
B26: Ayuda
B28: Los pasos a seguir son los siguientes:
B30: 1.- En la Hoja "Datos Empresa" seleccionamos la Empresa e introducimos el resto de campos correspondientes a "Datos fichero" y "Datos autor del Fichero".
B33: 2.- Completamos el resto de hojas, considerando que, sólo debemos modificar el contenido de aquellas celdas tintadas de amarillo, las celdas con fondo gris se encuentran protegidas y se corresponden a sumatorios y otras funciones del resto de celdas.
B37: 3.- Algunas celdas amarillas del presupuesto de capital también se encuentran protegidas y por defecto al rellenar el resto de hojas presentarán ya el importe correspondiente.
B40: 4.- En las columnas a rellenar hay que escribir el importe en euros, sin decimales y con el signo positivo o negativo según corresponda e indique la columna previa a las de liquidación, avance y previsión.
B43: 3.- Una vez completadas todas las hojas, deberá enviar el archivo excel a su secretaria general (por ejemplo, a través de email)
B46: En caso de duda, por favor comuníquese con el C.A.U. de Aplicaciones Tlf: 942 20 73 33 e-mail:cau@gobcantabria.es

Sheet EXPLOTACIÓN
A2: =IF('DATOS EMPRESA'!C4<>"",'DATOS EMPRESA'!C4,"") -> FUNDACIÓN CAMINO LEBANIEGO
C3: REAL | D3: PREVISIÓN
A4: PRESUPUESTO DE EXPLOTACIÓN | C4: 2020 | D4: 2021 | E4: 2022 | F4: 2023 | G4: 2024
A6: A) OPERACIONES CONTINUADAS
A8: 1. INGRESOS DE LA ACTIVIDAD PROPIA: | B8: + | C8: =C9+C10+C11+C12+C19 -> 679,841 | D8: =D9+D10+D11+D12+D19 -> 955,407 | E8: =E9+E10+E11+E12+E19 -> 1,496,125 | F8: =F9+F10+F11+F12+F19 -> 2,244,188 | G8: =G9+G10+G11+G12+G19 -> 1,572,000 | H8: 100000
A9: a) Cuotas de asociados y afiliados | C9: 0 | D9: 0 | E9: 0 | F9: 0 | G9: 0 | H9: 100001
A10: b) Aportaciones de usuarios | C10: 0 | D10: 0 | E10: 0 | F10: 0 | G10: 0 | H10: 100002
A11: c) Ingresos de promociones, patrocinadores y colaboraciones | C11: 0 | D11: 50,000 | E11: 0 | F11: 0 | G11: 0 | H11: 100003
A12: d) Subvenciones, donaciones y legados incorporados al excedente del ejercicio | C12: =SUM(C13:C18) -> 679,841 | D12: =SUM(D13:D18) -> 905,407 | E12: =SUM(E13:E18) -> 1,496,125 | F12: =SUM(F13:F18) -> 2,244,188 | G12: =SUM(G13:G18) -> 1,572,000 | H12: 100004
A13: - De la Administración de la Comunidad Autónoma | C13: 679,841 | D13: 905,407 | E13: =1300000 -> 1,300,000 | F13: =+E13*1.5 -> 1,950,000 | G13: =+E13*1.05 -> 1,365,000 | H13: 100018
A14: - De Organismos Autónomos de la Comunidad Autónoma | C14: 0 | D14: 0 | E14: 0 | F14: =+E14*1.1 -> 0 | G14: 0 | H14: 100019
A15: - De otros del Sector Público Autonómico con presupuestos limitativos | C15: 0 | D15: 0 | E15: 0 | F15: 0 | G15: 0 | H15: 100020
A16: - Del Sector Público Autonómico con presupuestos estimativos | C16: 0 | D16: 0 | E16: 0 | F16: 0 | G16: 0 | H16: 100021
A17: - De la Unión Europea | C17: 0 | D17: 0 | E17: 196,125 | F17: =+E17*1.5 -> 294,188 | G17: 207,000 | H17: 100022
A18: - De otros | C18: 0 | D18: 0 | E18: 0 | F18: 0 | G18: 0 | H18: 100023
A19: e) Reintegro de ayudas y asignaciones | C19: 0 | D19: 0 | E19: 0 | F19: 0 | G19: 0 | H19: 100005
A21: 2. VENTAS Y OTROS INGRESOS ORDINARIOS DE LA ACTIVIDAD MERCANTIL | B21: +/- | C21: 0 | D21: 0 | E21: 0 | F21: 0 | G21: 0 | H21: 100006
A23: 3. GASTOS POR AYUDAS Y OTROS: | B23: - | C23: =C24+C25+C26+C27 -> 0 | D23: =D24+D25+D26+D27 -> 0 | E23: =E24+E25+E26+E27 -> 0 | F23: =F24+F25+F26+F27 -> 0 | G23: =G24+G25+G26+G27 -> 0 | H23: 100007
A24: a) Ayudas monetarias | C24: 0 | D24: 0 | E24: 0 | F24: 0 | G24: 0 | H24: 100008
A25: b) Ayudas no monetarias | C25: 0 | D25: 0 | E25: 0 | F25: 0 | G25: 0 | H25: 100009
A26: c) Gastos por colaboraciones y del órgano de gobierno | C26: 0 | D26: 0 | E26: 0 | F26: 0 | G26: 0 | H26: 100010
A27: d) Reintegro de subvenciones, donaciones y legados | C27: 0 | D27: 0 | E27: 0 | F27: 0 | G27: 0 | H27: 100011
A29: 4. VARIACIÓN DE EXISTENCIAS DE PRODUCTOS TERMINADOS Y EN CURSO DE FABRICACIÓN | B29: +/- | C29: 0 | D29: 0 | E29: 0 | F29: 0 | G29: 0 | H29: 100012
A31: 5. TRABAJOS REALIZADOS POR LA ENTIDAD PARA SU ACTIVO | B31: - | C31: 0 | D31: 0 | E31: 0 | F31: 0 | G31: 0 | H31: 100013
A33: 6. APROVISIONAMIENTOS | B33: - | C33: 0 | D33: 0 | E33: 0 | F33: 0 | G33: 0 | H33: 100014
A35: 7. OTROS INGRESOS DE LA ACTIVIDAD | B35: + | C35: 0 | D35: 0 | E35: 0 | F35: 0 | G35: 0 | H35: 100015
A37: 8. GASTOS DE PERSONAL: | B37: - | C37: =C38+C39+C40+C41 -> -151,002 | D37: =D38+D39+D40+D41 -> -156,336 | E37: =E38+E39+E40+E41 -> -432,000 | F37: =F38+F39+F40+F41 -> -518,400 | G37: =G38+G39+G40+G41 -> -453,600 | H37: 100024
A38: a) Sueldos, salarios y asimilados | C38: -92,350 | D38: -95,321 | E38: =-282000-58000 -> -340,000 | F38: =+E38*1.2 -> -408,000 | G38: =+E38*1.05 -> -357,000 | H38: 100025
A39: b) Indemnizaciones | C39: 0 | D39: 0 | E39: 0 | F39: =+E39*1.1 -> 0 | G39: 0 | H39: 100026
A40: c) Cargas sociales | C40: -33,246 | D40: -34,315 | E40: -92,000 | F40: =+E40*1.2 -> -110,400 | G40: =+E40*1.05 -> -96,600 | H40: 100027
A41: d) Provisiones | C41: -25,406 | D41: -26,700 | E41: 0 | F41: 0 | G41: =+F41*1.1 -> 0 | H41: 100028
G42: 0
A43: 9. OTROS GASTOS DE LA ACTIVIDAD: | B43: - | C43: =C44+C45+C46+C47 -> -525,000 | D43: =D44+D45+D46+D47 -> -795,183 | E43: =E44+E45+E46+E47 -> -1,060,026 | F43: =F44+F45+F46+F47 -> -1,721,042 | G43: =G44+G45+G46+G47 -> -1,113,027 | H43: 100029
A44: a) Servicios exteriores | C44: -525,000 | D44: -795,000 | E44: -868,000 | F44: =-1388800-25000 -> -1,413,800 | G44: =+E44*1.05 -> -911,400 | H44: 100030
A45: b) Tributos | C45: 0 | D45: 0 | E45: 0 | F45: =+E45*1.1 -> 0 | G45: 0 | H45: 100031
A46: c) Pérdidas, deterioro y variación de provisiones por operaciones comerciales | C46: 0 | D46: 0 | E46: 0 | F46: 0 | G46: 0 | H46: 100032
A47: d) Otros gastos de gestión corriente | C47: 0 | D47: -183 | E47: =-196125+3739+360 -> -192,026 | F47: =+E47*1.6 -> -307,242 | G47: =+E47*1.05 -> -201,627 | H47: 100033
A49: 10. AMORTIZACIÓN DE INMOVILIZADO | B49: - | C49: -3,739 | D49: -3,739 | E49: -3,739 | F49: =+E49*1.1 -> -4,113 | G49: =+F49*1.1 -> -4,524 | H49: 100034
A51: 11. SUBVENCIONES, DONACIONES Y LEGADOS DE CAPITAL TRASPASADOS AL EXCEDENTE DEL EJERCICIO | B51: + | C51: 0 | D51: 0 | E51: 0 | F51: 0 | G51: 0 | H51: 100035
A53: 12. EXCESO DE PROVISIONES | B53: + | C53: 0 | D53: 0 | E53: 0 | F53: 0 | G53: 0 | H53: 100036
A55: 13. DETERIORO Y RESULTADO POR ENAJENACIONES DEL INMOVILIZADO: | B55: +/- | C55: =C56+C57 -> 0 | D55: =D56+D57 -> 0 | E55: =E56+E57 -> 0 | F55: =F56+F57 -> 0 | G55: =G56+G57 -> 0 | H55: 100037
A56: a) Deterioros y pérdidas | C56: 0 | D56: 0 | E56: 0 | F56: 0 | G56: 0 | H56: 100038
A57: b) Resultados por enajenaciones y otras | C57: 0 | D57: 0 | E57: 0 | F57: 0 | G57: 0 | H57: 100039
A59: 14. DIFERENCIA NEGATIVA POR COMBINACIONES DE NEGOCIOS | B59: - | C59: 0 | D59: 0 | E59: 0 | F59: 0 | G59: 0 | H59: 100040
A61: 15. OTROS RESULTADOS | B61: +/- | C61: 0 | D61: 0 | E61: 0 | F61: 0 | G61: 0 | H61: 100041
A63: A1) EXCEDENTE DE LA ACTIVIDAD (1+/-2+3-4+5-6-7-8+9+10+/-11-12-13-14+/-15) | B63: = | C63: =C8+C21+C23+C31+C29+C33+C35+C37+C43+C49+C51+C53+C55+C59+C61 -> 100 | D63: =D8+D21+D23+D31+D29+D33+D35+D37+D43+D49+D51+D53+D55+D59+D61 -> 149 | E63: =E8+E21+E23+E31+E29+E33+E35+E37+E43+E49+E51+E53+E55+E59+E61 -> 360 | F63: =F8+F21+F23+F31+F29+F33+F35+F37+F43+F49+F51+F53+F55+F59+F61 -> 633 | G63: =G8+G21+G23+G31+G29+G33+G35+G37+G43+G49+G51+G53+G55+G59+G61 -> 849 | H63: 100042
A65: 16. INGRESOS FINANCIEROS: | B65: + | C65: =C66+C69 -> 0 | D65: =D66+D69 -> 0 | E65: =E66+E69 -> 0 | F65: =F66+F69 -> 0 | G65: =G66+G69 -> 0 | H65: 100043
A66: a) De participaciones en instrumentos de patrimonio | C66: =C67+C68 -> 0 | D66: =D67+D68 -> 0 | E66: =E67+E68 -> 0 | F66: =F67+F68 -> 0 | G66: =G67+G68 -> 0 | H66: 100044
A67: a1) En entidades del grupo y asociadas | C67: 0 | D67: 0 | E67: 0 | F67: 0 | G67: 0 | H67: 100045
A68: a2) En terceros | C68: 0 | D68: 0 | E68: 0 | F68: 0 | G68: 0 | H68: 100046
A69: b) De valores negociables y otros instrumentos financieros | C69: =C70+C71 -> 0 | D69: =D70+D71 -> 0 | E69: =E70+E71 -> 0 | F69: =F70+F71 -> 0 | G69: =G70+G71 -> 0 | H69: 100047
A70: b1) De entidades del grupo y asociadas | C70: 0 | D70: 0 | E70: 0 | F70: 0 | G70: 0 | H70: 100048
A71: b2) De terceros | C71: 0 | D71: 0 | E71: 0 | F71: 0 | G71: 0 | H71: 100049
A73: 17. GASTOS FINANCIEROS: | B73: - | C73: =C74+C75+C76 -> -100 | D73: =D74+D75+D76 -> -149 | E73: =E74+E75+E76 -> -360 | F73: =F74+F75+F76 -> -633 | G73: =G74+G75+G76 -> -849 | H73: 100050
A74: a) Por deudas con empresas del grupo y asociadas | C74: -100 | D74: -149 | E74: -360 | F74: -633 | G74: -849 | H74: 100051
A75: b) Por deudas con terceros | C75: 0 | D75: 0 | F75: 0 | G75: 0 | H75: 100052
A76: c) Por actualización de provisiones | C76: 0 | D76: 0 | E76: 0 | F76: 0 | G76: 0 | H76: 100053
A78: 18. VARIACIÓN DE VALOR RAZONABLE EN INSTRUMENTOS FINANCIEROS: | B78: +/- | C78: =C79+C80 -> 0 | D78: =D79+D80 -> 0 | E78: =E79+E80 -> 0 | F78: =F79+F80 -> 0 | G78: =G79+G80 -> 0 | H78: 100054
A79: a) Cartera de negociación y otros | C79: 0 | D79: 0 | E79: 0 | F79: 0 | G79: 0 | H79: 100055
A80: b) Imputación al excedente del ejercicio por activos financieros disponibles para la venta | C80: 0 | D80: 0 | E80: 0 | F80: 0 | G80: 0 | H80: 100056
A82: 19. DIFERENCIAS DE CAMBIO | B82: +/- | C82: 0 | D82: 0 | E82: 0 | F82: 0 | G82: 0 | H82: 100057
A84: 20. DETERIORO Y RESULTADO POR ENAJENACIONES DE INSTRUMENTOS FINANCIEROS: | B84: +/- | C84: =C85+C86 -> 0 | D84: =D85+D86 -> 0 | E84: =E85+E86 -> 0 | F84: =F85+F86 -> 0 | G84: =G85+G86 -> 0 | H84: 100058
A85: a) Deterioros y pérdidas | C85: 0 | D85: 0 | E85: 0 | F85: 0 | G85: 0 | H85: 100059
A86: b) Resultados por enajenaciones y otras | C86: 0 | D86: 0 | E86: 0 | F86: 0 | G86: 0 | H86: 100060
A88: 21. IMPUTACIÓN DE SUBVENCIONES, DONACIONES Y LEGADOS DE CARÁCTER FINANCIERO | B88: + | C88: 0 | D88: 0 | E88: 0 | F88: 0 | G88: 0 | H88: 100061
A90: 22. INCORPORACIÓN AL ACTIVO DE GASTOS FINANCIEROS | B90: - | C90: 0 | D90: 0 | E90: 0 | F90: 0 | G90: 0 | H90: 100085
A92: A2) EXCEDENTE DE LAS OPERACIONES FINANCIERAS (16-17+/-18+/-19+/-20+21+22) | B92: = | C92: =C65+C73+C78+C82+C84+C88+C90 -> -100 | D92: =D65+D73+D78+D82+D84+D88+D90 -> -149 | E92: =E65+E73+E78+E82+E84+E88+E90 -> -360 | F92: =F65+F73+F78+F82+F84+F88+F90 -> -633 | G92: =G65+G73+G78+G82+G84+G88+G90 -> -849 | H92: 100062
A94: A3) EXCEDENTE ANTES DE IMPUESTOS (A1+A2) | B94: = | C94: =C63+C92 -> 0 | D94: =D63+D92 -> 0 | E94: =E63+E92 -> 0 | F94: =F63+F92 -> -0 | G94: =G63+G92 -> -0 | H94: 100063
A96: 23. IMPUESTO SOBRE BENEFICIOS | B96: - | C96: 0 | D96: 0 | E96: 0 | F96: 0 | G96: 0 | H96: 100064
A98: A4) EXCEDENTE DEL EJERCICIO PROCEDENTE DE OPERACIONES CONTINUADAS (A3-23) | B98: = | C98: =C94+C96 -> 0 | D98: =D94+D96 -> 0 | E98: =E94+E96 -> 0 | F98: =F94+F96 -> -0 | G98: =G94+G96 -> -0 | H98: 100065
A100: B) OPERACIONES INTERRUMPIDAS
A102: 24. EXCEDENTE DEL EJERCICIO PROCEDENTE DE OPERACIONES INTERRUMPIDAS NETO DE IMPUESTOS | B102: +/- | C102: 0 | D102: 0 | E102: 0 | F102: 0 | G102: 0 | H102: 100066
A104: A5)VARIACIÓN DE PATRIMONIO NETO RECONOCIDA EN EL EXCEDENTE DEL EJERCICIO (A4+/-24) | B104: = | C104: =C98+C102 -> 0 | D104: =D98+D102 -> 0 | E104: =E98+E102 -> 0 | F104: =F98+F102 -> -0 | G104: =G98+G102 -> -0 | H104: 100067
A106: C) INGRESOS Y GASTOS IMPUTADOS DIRECTAMENTE AL PATRIMONIO NETO
A108: 1. ACTIVOS FINANCIEROS DISPONIBLES PARA LA VENTA | B108: +/- | C108: 0 | D108: 0 | E108: 0 | F108: 0 | G108: 0 | H108: 100068
A110: 2. OPERACIONES DE COBERTURA DE FLUJOS DE EFECTIVO | B110: +/- | C110: 0 | D110: 0 | E110: 0 | F110: 0 | G110: 0 | H110: 100069
A112: 3. SUBVENCIONES, DONACIONES Y LEGADOS RECIBIDOS | B112: + | C112: 830,000 | D112: 955,000 | E112: 1,570,300 | F112: 2,300,000 | G112: 1,600,000 | H112: 100070
A114: 4.GANANCIAS Y PÉRDIDAS ACTUARIALES Y OTROS AJUSTES | B114: +/- | C114: 0 | D114: 0 | E114: 0 | F114: 0 | G114: 0 | H114: 100071
A116: 5. EFECTO IMPOSITIVO | B116: +/- | C116: 0 | D116: 0 | E116: 0 | F116: 0 | G116: 0 | H116: 100072
A118: C1) VARIACIÓN DE PATRIMONIO NETO POR INGRESOS Y GASTOS RECONOCIDOS DIRECTAMENTE EN EL PATRIMONIO NETO (1+2+3+4+5)
B119: = | C119: =C108+C110+C112+C114+C116 -> 830,000 | D119: =D108+D110+D112+D114+D116 -> 955,000 | E119: =E108+E110+E112+E114+E116 -> 1,570,300 | F119: =F108+F110+F112+F114+F116 -> 2,300,000 | G119: =G108+G110+G112+G114+G116 -> 1,600,000 | H119: 100073
A121: D) RECLASIFICACIONES AL EXCEDENTE DEL EJERCICIO
A123: 1. ACTIVOS FINANCIEROS DISPONIBLES PARA LA VENTA | B123: +/- | C123: 0 | D123: 0 | E123: 0 | F123: 0 | G123: 0 | H123: 100074
A125: 2. OPERACIONES DE COBERTURA DE FLUJOS DE EFECTIVO | B125: +/- | C125: 0 | D125: 0 | E125: 0 | F125: 0 | G125: 0 | H125: 100075
A127: 3. SUBVENCIONES, DONACIONES Y LEGADOS RECIBIDOS | B127: - | C127: -679,841 | D127: -905,407 | E127: -1,496,125 | F127: =-F13-F17 -> -2,244,188 | G127: -1,572,000 | H127: 100076
A129: 4.GANANCIAS Y PÉRDIDAS ACTUARIALES Y OTROS AJUSTES | B129: +/- | C129: 0 | D129: 0 | E129: 0 | F129: 0 | G129: 0 | H129: 100077
A131: D1) VARIACIÓN DE PATRIMONIO NETO POR RECLASIFICACIONES AL EXCEDENTE DEL EJERCICIO (1+2+3+4+5)
B132: = | C132: =C123+C125+C127+C129 -> -679,841 | D132: =D123+D125+D127+D129 -> -905,407 | E132: =E123+E125+E127+E129 -> -1,496,125 | F132: =F123+F125+F127+F129 -> -2,244,188 | G132: =G123+G125+G127+G129 -> -1,572,000 | H132: 100078
A134: E) VARIACIONES DE PATRIMONIO NETO POR INGRESOS Y GASTOS IMPUTADOS DIRECTAMENTE AL PATRIMOIO NETO (C1+D1)
B135: = | C135: =C119+C132 -> 150,159 | D135: =D119+D132 -> 49,593 | E135: =E119+E132 -> 74,175 | F135: =F119+F132 -> 55,813 | G135: =G119+G132 -> 28,000 | H135: 100079
A137: F) AJUSTES POR CAMBIOS DE CRITERIO | B137: +/- | C137: 0 | D137: 0 | E137: 0 | F137: 0 | G137: 0 | H137: 100080
A139: G) AJUSTES POR ERRORES | B139: +/- | C139: 0 | D139: 0 | E139: 0 | F139: 0 | G139: 0 | H139: 100081
A141: H) VARIACIONES EN LA DOTACIÓN FUNDACIONAL O FONDO SOCIAL | B141: +/- | C141: 0 | D141: 0 | E141: 0 | F141: 0 | G141: 0 | H141: 100082
A143: I) OTRAS VARIACIONES | B143: +/- | C143: 0 | D143: 0 | E143: 0 | F143: 0 | G143: 0 | H143: 100083
A145: J) RESULTADO TOTAL, VARIACIÓN DEL PATRIMONIO NETO EN EL EJERCICIO (A5+E+F+G+H+I) | B145: = | C145: =C104+C135+C137+C139+C141+C143 -> 150,159 | D145: =D104+D135+D137+D139+D141+D143 -> 49,593 | E145: =E104+E135+E137+E139+E141+E143 -> 74,175 | F145: =F104+F135+F137+F139+F141+F143 -> 55,812 | G145: =G104+G135+G137+G139+G141+G143 -> 28,000 | H145: 100084

Sheet CAPITAL
A2: =IF('DATOS EMPRESA'!C4<>"",'DATOS EMPRESA'!C4,"") -> FUNDACIÓN CAMINO LEBANIEGO
C3: REAL | D3: PREVISIÓN
A4: PRESUPUESTO DE CAPITAL | C4: 2020 | D4: 2021 | E4: 2022 | F4: 2023 | G4: 2024
A6: A) FLUJOS DE EFECTIVO DE LAS ACTIVIDADES DE EXPLOTACIÓN
A8: 1. EXCEDENTE DEL EJERCICIO ANTES DE IMPUESTOS | C8: =EXPLOTACIÓN!C94 -> 0 | D8: =EXPLOTACIÓN!D94 -> 0 | E8: =EXPLOTACIÓN!E94 -> 0 | F8: =EXPLOTACIÓN!F94 -> -0 | G8: =EXPLOTACIÓN!G94 -> -0 | H8: 400000
A10: 2. AJUSTES DEL RESULTADO | C10: =C11+C12+C13+C14+C15+C16+C17+C18+C19+C20+C21 -> -676,002 | D10: =D11+D12+D13+D14+D15+D16+D17+D18+D19+D20+D21 -> -901,521 | E10: =E11+E12+E13+E14+E15+E16+E17+E18+E19+E20+E21 -> -1,492,026 | F10: =F11+F12+F13+F14+F15+F16+F17+F18+F19+F20+F21 -> -2,239,442 | G10: =G11+G12+G13+G14+G15+G16+G17+G18+G19+G20+G21 -> -1,566,627 | H10: 400001
A11: a) Amortización del inmovilizado | B11: (+) | C11: =EXPLOTACIÓN!C49*(-1) -> 3,739 | D11: =EXPLOTACIÓN!D49*(-1) -> 3,739 | E11: =EXPLOTACIÓN!E49*(-1) -> 3,739 | F11: =EXPLOTACIÓN!F49*(-1) -> 4,113 | G11: =EXPLOTACIÓN!G49*(-1) -> 4,524 | H11: 400002
A12: b) Correcciones valorativas por deterioro | B12: (+/-) | C12: 0 | D12: 0 | E12: 0 | F12: 0 | G12: 0 | H12: 400003
A13: c) Variación de provisiones | B13: (+/-) | C13: 0 | D13: 0 | E13: 0 | F13: 0 | G13: 0 | H13: 400004
A14: d) Imputación de subvenciones | B14: (-) | C14: =EXPLOTACIÓN!C51*(-1)+EXPLOTACIÓN!C88*(-1) -> 0 | D14: =EXPLOTACIÓN!D51*(-1)+EXPLOTACIÓN!D88*(-1) -> 0 | E14: =EXPLOTACIÓN!E51*(-1)+EXPLOTACIÓN!E88*(-1) -> 0 | F14: =EXPLOTACIÓN!F51*(-1)+EXPLOTACIÓN!F88*(-1) -> 0 | G14: =EXPLOTACIÓN!G51*(-1)+EXPLOTACIÓN!G88*(-1) -> 0 | H14: =EXPLOTACIÓN!H51*(-1)+EXPLOTACIÓN!H88*(-1) -> -200,096
A15: e) Resultados por bajas y enajenaciones de inmovilizado | B15: (+/-) | C15: 0 | D15: 0 | E15: 0 | F15: 0 | G15: 0 | H15: 400006
A16: f ) Resultados por bajas y enajenaciones de instrumentos financieros | B16: (+/-) | C16: 0 | D16: 0 | E16: 0 | F16: 0 | G16: 0 | H16: 400007
A17: g) Ingresos financieros | B17: (-) | C17: =EXPLOTACIÓN!C65*(-1) -> 0 | D17: =EXPLOTACIÓN!D65*(-1) -> 0 | E17: =EXPLOTACIÓN!E65*(-1) -> 0 | F17: =EXPLOTACIÓN!F65*(-1) -> 0 | G17: =EXPLOTACIÓN!G65*(-1) -> 0 | H17: 400008
A18: h) Gastos financieros | B18: (+) | C18: =EXPLOTACIÓN!C73*(-1) -> 100 | D18: =EXPLOTACIÓN!D73*(-1) -> 149 | E18: =EXPLOTACIÓN!E73*(-1) -> 360 | F18: =EXPLOTACIÓN!F73*(-1) -> 633 | G18: =EXPLOTACIÓN!G73*(-1) -> 849 | H18: 400009
A19: i ) Diferencias de cambio | B19: (+/-) | C19: =EXPLOTACIÓN!C82*(-1) -> 0 | D19: =EXPLOTACIÓN!D82*(-1) -> 0 | E19: =EXPLOTACIÓN!E82*(-1) -> 0 | F19: =EXPLOTACIÓN!F82*(-1) -> 0 | G19: =EXPLOTACIÓN!G82*(-1) -> 0 | H19: 400010
A20: j ) Variación del valor razonable en instrumentos financieros | B20: (+/-) | C20: =EXPLOTACIÓN!C78*(-1) -> 0 | D20: =EXPLOTACIÓN!D78*(-1) -> 0 | E20: =EXPLOTACIÓN!E78*(-1) -> 0 | F20: =EXPLOTACIÓN!F78*(-1) -> 0 | G20: =EXPLOTACIÓN!G78*(-1) -> 0 | H20: 400011
A21: k) Otros ingresos y gastos | B21: (+/-) | C21: -679,841 | D21: =-955407+49998 -> -905,409 | E21: -1,496,125 | F21: =-F70 -> -2,244,188 | G21: -1,572,000 | H21: 400012
A23: 3. CAMBIOS EN EL CAPITAL CORRIENTE | C23: =C24+C25+C26+C27+C28+C29 -> -2,157 | D23: =D24+D25+D26+D27+D28+D29 -> -4,332 | E23: =E24+E25+E26+E27+E28+E29 -> -74,079 | F23: =F24+F25+F26+F27+F28+F29 -> -2,094 | G23: =G24+G25+G26+G27+G28+G29 -> -25,203 | H23: 400013
A24: a) Existencias | B24: (+/-) | C24: 0 | D24: =ACTIVO!C54-ACTIVO!D54 -> 0 | E24: =ACTIVO!D54-ACTIVO!E54 -> 0 | F24: =ACTIVO!E54-ACTIVO!F54 -> 0 | G24: =ACTIVO!F54-ACTIVO!G54 -> 0 | H24: 400014
A25: b) Deudores y otras cuentas a cobrar | B25: (+/-) | C25: 0 | D25: =ACTIVO!C67+ACTIVO!C62-ACTIVO!D67-ACTIVO!D62 -> 0 | E25: =ACTIVO!D67+ACTIVO!D62-ACTIVO!E67-ACTIVO!E62 -> -74,174 | F25: =ACTIVO!E67+ACTIVO!E62-ACTIVO!F67-ACTIVO!F62 -> -12,416 | G25: =ACTIVO!F67+ACTIVO!F62-ACTIVO!G67-ACTIVO!G62 -> -6,874 | H25: 400015
A26: c) Otros activos corrientes | B26: (+/-) | C26: 0 | D26: =(ACTIVO!C76+ACTIVO!C83+ACTIVO!C90)-(ACTIVO!D76+ACTIVO!D83+ACTIVO!D90) -> 0 | E26: =(ACTIVO!D76+ACTIVO!D83+ACTIVO!D90)-(ACTIVO!E76+ACTIVO!E83+ACTIVO!E90) -> -664 | F26: =(ACTIVO!E76+ACTIVO!E83+ACTIVO!E90)-(ACTIVO!F76+ACTIVO!F83+ACTIVO!F90) -> -66 | G26: =(ACTIVO!F76+ACTIVO!F83+ACTIVO!F90)-(ACTIVO!G76+ACTIVO!G83+ACTIVO!G90) -> -73 | H26: 400016
A27: d) Acreedores y otras cuentas a pagar | B27: (+/-) | C27: -4,858 | D27: ='PATRIMONIO NETO Y PASIVO'!D76+'PATRIMONIO NETO Y PASIVO'!D74-'PATRIMONIO NETO Y PASIVO'!C76-'PATRIMONIO NETO Y PASIVO'!C74 -> -4,332 | E27: ='PATRIMONIO NETO Y PASIVO'!E76+'PATRIMONIO NETO Y PASIVO'!E74-'PATRIMONIO NETO Y PASIVO'!D76-'PATRIMONIO NETO Y PASIVO'!D74 -> 7,577 | F27: ='PATRIMONIO NETO Y PASIVO'!F76+'PATRIMONIO NETO Y PASIVO'!F74-'PATRIMONIO NETO Y PASIVO'!E76-'PATRIMONIO NETO Y PASIVO'!E74 -> 10,388 | G27: ='PATRIMONIO NETO Y PASIVO'!G76+'PATRIMONIO NETO Y PASIVO'!G74-'PATRIMONIO NETO Y PASIVO'!F76-'PATRIMONIO NETO Y PASIVO'!F74 -> -18,256 | H27: 400017
A28: e) Otros pasivos corrientes | B28: (+/-) | C28: 2,701 | D28: =('PATRIMONIO NETO Y PASIVO'!D61+'PATRIMONIO NETO Y PASIVO'!D65+'PATRIMONIO NETO Y PASIVO'!D72+'PATRIMONIO NETO Y PASIVO'!D85)-('PATRIMONIO NETO Y PASIVO'!C61+'PATRIMONIO NETO Y PASIVO'!C65+'PATRIMONIO NETO Y PASIVO'!C72+'PATRIMONIO NETO Y PASIVO'!C85) -> 0 | E28: =('PATRIMONIO NETO Y PASIVO'!E61+'PATRIMONIO NETO Y PASIVO'!E65+'PATRIMONIO NETO Y PASIVO'!E72+'PATRIMONIO NETO Y PASIVO'!E85)-('PATRIMONIO NETO Y PASIVO'!D61+'PATRIMONIO NETO Y PASIVO'!D65+'PATRIMONIO NETO Y PASIVO'!D72+'PATRIMONIO NETO Y PASIVO'!D85) -> -6,818 | F28: =('PATRIMONIO NETO Y PASIVO'!F61+'PATRIMONIO NETO Y PASIVO'!F65+'PATRIMONIO NETO Y PASIVO'!F72+'PATRIMONIO NETO Y PASIVO'!F85)-('PATRIMONIO NETO Y PASIVO'!E61+'PATRIMONIO NETO Y PASIVO'!E65+'PATRIMONIO NETO Y PASIVO'!E72+'PATRIMONIO NETO Y PASIVO'!E85) -> 0 | G28: =('PATRIMONIO NETO Y PASIVO'!G61+'PATRIMONIO NETO Y PASIVO'!G65+'PATRIMONIO NETO Y PASIVO'!G72+'PATRIMONIO NETO Y PASIVO'!G85)-('PATRIMONIO NETO Y PASIVO'!F61+'PATRIMONIO NETO Y PASIVO'!F65+'PATRIMONIO NETO Y PASIVO'!F72+'PATRIMONIO NETO Y PASIVO'!F85) -> 0 | H28: 400018
A29: f) Otros activos y pasivos no corrientes | B29: (+/-) | C29: 0 | E29: 0 | F29: 0 | G29: 0 | H29: 400019
A31: 4. OTROS FLUJOS DE EFECTIVO DE LAS ACTIVIDADES DE EXPLOTACIÓN | C31: =C32+C33+C34+C35+C36 -> -100 | D31: =D32+D33+D34+D35+D36 -> -149 | E31: =E32+E33+E34+E35+E36 -> -360 | F31: =F32+F33+F34+F35+F36 -> -633 | G31: =G32+G33+G34+G35+G36 -> -884 | H31: 400020
A32: a) Pagos de intereses | B32: (-) | C32: -100 | D32: -149 | E32: -360 | F32: -633 | G32: -884 | H32: 400021
A33: b) Cobros de dividendos | B33: (+) | C33: 0 | D33: 0 | E33: 0 | F33: 0 | G33: 0 | H33: 400022
A34: c) Cobros de intereses | B34: (+) | C34: 0 | D34: 0 | E34: 0 | F34: 0 | G34: 0 | H34: 400023
A35: d) Pagos (cobros) por impuesto sobre beneficios | B35: (-/+) | C35: 0 | D35: 0 | E35: 0 | F35: 0 | G35: 0 | H35: 400024
A36: e) Otros pagos (cobros) | B36: (-/+) | C36: 0 | D36: 0 | E36: 0 | F36: 0 | G36: 0 | H36: 400025
A38: 5. FLUJOS DE EFECTIVO DE LAS ACTIVIDADES DE EXPLOTACIÓN (+/-1+/-2+/-3+/-4) | C38: =C8+C10+C23+C31 -> -678,259 | D38: =D8+D10+D23+D31 -> -906,002 | E38: =E8+E10+E23+E31 -> -1,566,465 | F38: =F8+F10+F23+F31 -> -2,242,170 | G38: =G8+G10+G23+G31 -> -1,592,714 | H38: 400026
A40: B) FLUJOS DE EFECTIVO DE LAS ACTIVIDADES DE INVERSIÓN
A42: 6. PAGOS POR INVERSIONES | B42: (-) | C42: =C43+C44+C45+C46+C47+C48+C49+C50 -> 0 | D42: =D43+D44+D45+D46+D47+D48+D49+D50 -> 0 | E42: =E43+E44+E45+E46+E47+E48+E49+E50 -> 0 | F42: =F43+F44+F45+F46+F47+F48+F49+F50 -> 0 | G42: =G43+G44+G45+G46+G47+G48+G49+G50 -> 0 | H42: 400027
A43: a) Entidades del grupo y asociadas | C43: 0 | D43: 0 | E43: 0 | F43: 0 | G43: 0 | H43: 400028
A44: b) Inmovilizado intangible | C44: 0 | D44: 0 | E44: 0 | F44: 0 | G44: 0 | H44: 400029
A45: c) Inmovilizado material | C45: 0 | D45: 0 | E45: 0 | F45: 0 | G45: 0 | H45: 400030
A46: d) Bienes del Patrimonio Histórico | C46: 0 | D46: 0 | E46: 0 | F46: 0 | G46: 0 | H46: 400031
A47: e) Inversiones inmobiliarias | C47: 0 | D47: 0 | E47: 0 | F47: 0 | G47: 0 | H47: 400032
A48: f) Otros activos financieros | C48: 0 | D48: 0 | E48: 0 | F48: 0 | G48: 0 | H48: 400033
A49: g) Activos no corrientes mantenidos para la venta | C49: 0 | D49: 0 | E49: 0 | F49: 0 | G49: 0 | H49: 400034
A50: h) Otros activos | C50: 0 | D50: 0 | E50: 0 | F50: 0 | G50: 0 | H50: 400035
A52: 7. COBROS POR DESINVERSIONES | B52: (+) | C52: =C53+C54+C55+C56+C57+C58+C59+C60 -> 0 | D52: =D53+D54+D55+D56+D57+D58+D59+D60 -> 0 | E52: =E53+E54+E55+E56+E57+E58+E59+E60 -> 0 | F52: =F53+F54+F55+F56+F57+F58+F59+F60 -> 0 | G52: =G53+G54+G55+G56+G57+G58+G59+G60 -> 0 | H52: 400036
A53: a) Entidades del grupo y asociadas | C53: 0 | D53: 0 | E53: 0 | F53: 0 | G53: 0 | H53: 400037
A54: b) Inmovilizado intangible | C54: 0 | D54: 0 | E54: 0 | F54: 0 | G54: 0 | H54: 400038
A55: c) Inmovilizado material | C55: 0 | D55: 0 | E55: 0 | F55: 0 | G55: 0 | H55: 400039
A56: d) Bienes del Patrimonio Histórico | C56: 0 | D56: 0 | E56: 0 | F56: 0 | G56: 0 | H56: 400040
A57: e) Inversiones inmobiliarias | C57: 0 | D57: 0 | E57: 0 | F57: 0 | G57: 0 | H57: 400041
A58: f) Otros activos financieros | C58: 0 | D58: 0 | E58: 0 | F58: 0 | G58: 0 | H58: 400042
A59: g) Activos no corrientes mantenidos para la venta | C59: 0 | D59: 0 | E59: 0 | F59: 0 | G59: 0 | H59: 400043
A60: h) Otros activos | C60: 0 | D60: 0 | E60: 0 | F60: 0 | G60: 0 | H60: 400044
A62: 8. FLUJOS DE EFECTIVO DE LAS ACTIVIDADES DE INVERSIÓN (6+7) | C62: =C42+C52 -> 0 | D62: =D42+D52 -> 0 | E62: =E42+E52 -> 0 | F62: =F42+F52 -> 0 | G62: =G42+G52 -> 0 | H62: 400045
A64: C) FLUJOS DE EFECTIVO DE LAS ACTIVIDADES DE FINANCIACIÓN
A66: 9. COBROS Y PAGOS POR OPERACIONES DE PATRIMONIO | C66: =C67+C68+C69 -> 830,000 | D66: =D67+D68+D69 -> 955,000 | E66: =E67+E68+E69 -> 1,496,125 | F66: =F67+F68+F69 -> 2,244,188 | G66: =G67+G68+G69 -> 1,572,000 | H66: 400046
A67: a) Aportaciones a la dotación fundacional o fondo social | B67: (+) | C67: 0 | D67: 0 | E67: 0 | F67: 0 | G67: 0 | H67: 400047
A68: b) Disminuciones del fondo social | B68: (-) | C68: 0 | D68: 0 | E68: 0 | F68: 0 | G68: 0 | H68: 400048
A69: c) Subvenciones, donaciones y legados recibidos | B69: (+) | C69: =C70+C71+C72+C73+C74+C75 -> 830,000 | D69: =D70+D71+D72+D73+D74+D75 -> 955,000 | E69: =E70+E71+E72+E73+E74+E75 -> 1,496,125 | F69: =F70+F71+F72+F73+F74+F75 -> 2,244,188 | G69: =G70+G71+G72+G73+G74+G75 -> 1,572,000 | H69: 400049
A70: - De la Administración de la Comunidad Autónoma | C70: 830,000 | D70: 955,000 | E70: 1,496,125 | F70: 2,244,188 | G70: =-G21 -> 1,572,000 | H70: 400050
A71: - De Organismos Autónomos de la Comunidad Autónoma | C71: 0 | D71: 0 | E71: 0 | F71: 0 | G71: 0 | H71: 400051
A72: - De otros del Sector Público Autonómico con presupuestos limitativos | C72: 0 | D72: 0 | E72: 0 | F72: 0 | G72: 0 | H72: 400052
A73: - Del Sector Público Autonómico con presupuestos estimativos | C73: 0 | D73: 0 | E73: 0 | F73: 0 | G73: 0 | H73: 400053
A74: - De la Unión Europea | C74: 0 | D74: 0 | E74: 0 | F74: 0 | G74: 0 | H74: 400054
A75: - De otros | C75: 0 | D75: 0 | E75: 0 | F75: 0 | G75: 0 | H75: 400055
A77: 10. COBROS Y PAGOS POR INSTRUMENTOS DE PASIVO FINANCIERO | C77: =C78+C86 -> -1,739 | D77: =D78+D86 -> 0 | E77: =E78+E86 -> 52,482 | F77: =F78+F86 -> 32,982 | G77: =G78+G86 -> -24,286 | H77: 400056
A78: a) Emisión | C78: =C79+C80+C81+C82+C84 -> 0 | D78: =D79+D80+D81+D82+D84 -> 0 | E78: =E79+E80+E81+E82+E84 -> 52,482 | F78: =F79+F80+F81+F82+F84 -> 32,982 | G78: =G79+G80+G81+G82+G84 -> 0 | H78: 400057
A79: 1. Obligaciones y otros valores negociables | B79: (+) | C79: 0 | D79: 0 | E79: 0 | F79: 0 | G79: 0 | H79: 400058
A80: 2. Deudas con entidades de crédito | B80: (+) | C80: 0 | D80: 0 | E80: 52,482 | F80: 32,982 | H80: 400059
A81: 3. Deudas con entidades del grupo y asociadas | B81: (+) | C81: 0 | D81: 0 | E81: 0 | F81: 0 | G81: 0 | H81: 400060
A82: 4. Deudas transformables en subvenciones, donaciones y legados | B82: (+) | C82: 0 | D82: 0 | E82: 0 | F82: 0 | G82: 0 | H82: 400061
A83: 5. Préstamos procedentes del Sector Público | B83: (+) | C83: 0 | D83: 0 | F83: 0 | G83: 0 | H83: 400062
A84: 6. Otras deudas | B84: (+) | C84: 0 | D84: 0 | F84: 0 | G84: 0 | H84: 400063
A86: b) Devolución y amortización de | C86: =C87+C88+C89+C90 -> -1,739 | D86: =D87+D88+D89+D90 -> 0 | E86: =E87+E88+E89+E90 -> 0 | F86: =F87+F88+F89+F90 -> 0 | G86: =G87+G88+G89+G90 -> -24,286 | H86: 400064
A87: 1. Obligaciones y otros valores negociables | B87: (-) | C87: 0 | D87: 0 | E87: 0 | F87: 0 | G87: 0 | H87: 400065
A88: 2. Deudas con entidades de crédito | B88: (-) | C88: 0 | D88: 0 | E88: 0 | F88: 0 | G88: -24,286 | H88: 400066
A89: 3. Deudas con entidades del grupo y asociadas | B89: (-) | C89: 0 | D89: 0 | E89: 0 | F89: 0 | G89: 0 | H89: 400067
A90: 4. Otras deudas | B90: (-) | C90: -1,739 | D90: 0 | F90: 0 | G90: 0 | H90: 400068
A92: 11. FLUJOS DE EFECTIVO DE LAS ACTIVIDADES DE FINANCIACIÓN (+/-9+/-10) | C92: =C66+C77 -> 828,261 | D92: =D66+D77 -> 955,000 | E92: =E66+E77 -> 1,548,607 | F92: =F66+F77 -> 2,277,170 | G92: =G66+G77 -> 1,547,714 | H92: 400069
A94: D) EFECTO DE LAS VARIACIONES DE LOS TIPOS DE CAMBIO | B94: (+/-) | C94: 0 | D94: 0 | E94: 0 | F94: 0 | G94: 0 | H94: 400070
A96: E) AUMENTO / DISMINUCION NETA DEL EFECTIVO O EQUIVALENTES (+/-5+/-8+/-11+/-D) | C96: =C38+C62+C92+C94 -> 150,002 | D96: =D38+D62+D92+D94 -> 48,998 | E96: =E38+E62+E92+E94 -> -17,858 | F96: =F38+F62+F92+F94 -> 35,001 | G96: =G38+G62+G92+G94 -> -45,000 | H96: 400071
A98: Efectivo o equivalentes al comienzo del ejercicio | C98: 168,858 | D98: =C100 -> 318,860 | E98: =D100 -> 367,858 | F98: =E100 -> 350,000 | G98: =F100 -> 385,000 | H98: 400072
A100: Efectivo o equivalentes al final del ejercicio | C100: =ACTIVO!C92 -> 318,860 | D100: =ACTIVO!D92 -> 367,858 | E100: =ACTIVO!E92 -> 350,000 | F100: =ACTIVO!F92 -> 385,000 | G100: =ACTIVO!G92 -> 340,000 | H100: 400073
A102: CHECK FLUJOS DE EFECTIVO | C102: =+IF(ROUND((C96+C98-C100), 0)=0,"OK","KO") -> OK | D102: =+IF(ROUND((D96+D98-D100), 0)=0,"OK","KO") -> OK | E102: OK | F102: OK | G102: OK

Sheet ACTIVO
A2: =IF('DATOS EMPRESA'!C4<>"",'DATOS EMPRESA'!C4,"") -> FUNDACIÓN CAMINO LEBANIEGO
C3: REAL | D3: PREVISIÓN
A4: BALANCE DE SITUACIÓN | C4: 2020 | D4: 2021 | E4: 2022 | F4: 2023 | G4: 2024
A6: A) ACTIVO NO CORRIENTE | C6: =C8+C17+C25+C30+C34+C41+C48 -> 24,651 | D6: =D8+D17+D25+D30+D34+D41+D48 -> 20,914 | E6: =E8+E17+E25+E30+E34+E41+E48 -> 35,000 | F6: =F8+F17+F25+F30+F34+F41+F48 -> 36,000 | G6: =G8+G17+G25+G30+G34+G41+G48 -> 37,100 | H6: 700000
A8: I. INMOVILIZADO INTANGIBLE | C8: =C9+C10+C11+C12+C13+C14+C15 -> 21,155 | D8: =D9+D10+D11+D12+D13+D14+D15 -> 20,006 | E8: =E9+E10+E11+E12+E13+E14+E15 -> 25,000 | F8: =F9+F10+F11+F12+F13+F14+F15 -> 25,000 | G8: =G9+G10+G11+G12+G13+G14+G15 -> 25,000 | H8: 700001
A9: 1. Desarrollo | C9: 0 | D9: 0 | E9: 0 | F9: 0 | G9: 0 | H9: 700002
A10: 2. Concesiones | C10: 0 | D10: 0 | E10: 0 | F10: 0 | G10: 0 | H10: 700003
A11: 3. Patentes, licencias, marcas y similares | C11: 21,155 | D11: 20,006 | E11: 25,000 | F11: 25,000 | G11: 25,000 | H11: 700004
A12: 4. Fondo de comercio | C12: 0 | D12: 0 | E12: 0 | F12: 0 | G12: 0 | H12: 700005
A13: 5. Aplicaciones informáticas | C13: 0 | D13: 0 | E13: 0 | F13: 0 | G13: 0 | H13: 700006
A14: 6. Derechos sobre activos cedidos en uso | C14: 0 | D14: 0 | E14: 0 | F14: 0 | G14: 0 | H14: 700007
A15: 7. Otro inmovilizado intangible | C15: 0 | D15: 0 | E15: 0 | F15: 0 | G15: 0 | H15: 700008
A17: II. BIENES DEL PATRIMONIO HISTÓRICO | C17: =C18+C19+C20+C21+C22+C23 -> 0 | D17: =D18+D19+D20+D21+D22+D23 -> 0 | E17: =E18+E19+E20+E21+E22+E23 -> 0 | F17: =F18+F19+F20+F21+F22+F23 -> 0 | G17: =G18+G19+G20+G21+G22+G23 -> 0 | H17: 700009
A18: 1. Bienes inmuebles | C18: 0 | D18: 0 | E18: 0 | F18: 0 | G18: 0 | H18: 700010
A19: 2. Archivos | C19: 0 | D19: 0 | E19: 0 | F19: 0 | G19: 0 | H19: 700011
A20: 3. Bibliotecas | C20: 0 | D20: 0 | E20: 0 | F20: 0 | G20: 0 | H20: 700012
A21: 4. Museos | C21: 0 | D21: 0 | E21: 0 | F21: 0 | G21: 0 | H21: 700013
A22: 5. Bienes muebles | C22: 0 | D22: 0 | E22: 0 | F22: 0 | G22: 0 | H22: 700014
A23: 6. Anticipo sobre bienes del Patrimonio Histórico | C23: 0 | D23: 0 | E23: 0 | F23: 0 | G23: 0 | H23: 700015
A25: III.INMOVILIZADO MATERIAL | C25: =C26+C27+C28 -> 3,496 | D25: =D26+D27+D28 -> 908 | E25: =E26+E27+E28 -> 10,000 | F25: =F26+F27+F28 -> 11,000 | G25: =G26+G27+G28 -> 12,100 | H25: 700016
A26: 1. Terrenos y construcciones | C26: 0 | D26: 0 | E26: 0 | F26: 0 | G26: 0 | H26: 700017
A27: 2. Instalaciones técnicas y otro inmovilizado material | C27: 3,496 | D27: 908 | E27: 10,000 | F27: =+E27*1.1 -> 11,000 | G27: 12,100 | H27: 700018
A28: 3. Inmovilizado en curso y anticipos | C28: 0 | D28: 0 | E28: 0 | F28: 0 | G28: 0 | H28: 700019
A30: IV. INVERSIONES INMOBILIARIAS | C30: =C31+C32 -> 0 | D30: =D31+D32 -> 0 | E30: =E31+E32 -> 0 | F30: =F31+F32 -> 0 | G30: =G31+G32 -> 0 | H30: 700020
A31: 1. Terrenos | C31: 0 | D31: 0 | E31: 0 | F31: 0 | G31: 0 | H31: 700021
A32: 2. Construcciones | C32: 0 | D32: 0 | E32: 0 | F32: 0 | G32: 0 | H32: 700022
A34: V. INVERSIONES EN ENTIDADES DEL GRUPO Y ASOCIADAS A LARGO PLAZO | C34: =C35+C36+C37+C38+C39 -> 0 | D34: =D35+D36+D37+D38+D39 -> 0 | E34: =E35+E36+E37+E38+E39 -> 0 | F34: =F35+F36+F37+F38+F39 -> 0 | G34: =G35+G36+G37+G38+G39 -> 0 | H34: 700023
A35: 1. Instrumentos de patrimonio | C35: 0 | D35: 0 | E35: 0 | F35: 0 | G35: 0 | H35: 700024
A36: 2. Créditos a entidades | C36: 0 | D36: 0 | E36: 0 | F36: 0 | G36: 0 | H36: 700025
A37: 3. Valores representativos de deuda | C37: 0 | D37: 0 | E37: 0 | F37: 0 | G37: 0 | H37: 700026
A38: 4. Derivados | C38: 0 | D38: 0 | E38: 0 | F38: 0 | G38: 0 | H38: 700027
A39: 5. Otros activos financieros | C39: 0 | D39: 0 | E39: 0 | F39: 0 | G39: 0 | H39: 700028
A41: VI. INVERSIONES FINANCIERAS A LARGO PLAZO | C41: =C42+C43+C44+C45+C46 -> 0 | D41: =D42+D43+D44+D45+D46 -> 0 | E41: =E42+E43+E44+E45+E46 -> 0 | F41: =F42+F43+F44+F45+F46 -> 0 | G41: =G42+G43+G44+G45+G46 -> 0 | H41: 700029
A42: 1. Instrumentos de patrimonio | C42: 0 | D42: 0 | E42: 0 | F42: 0 | G42: 0 | H42: 700030
A43: 2. Créditos a terceros | C43: 0 | D43: 0 | E43: 0 | F43: 0 | G43: 0 | H43: 700031
A44: 3. Valores representativos de deuda | C44: 0 | D44: 0 | E44: 0 | F44: 0 | G44: 0 | H44: 700032
A45: 4. Derivados | C45: 0 | D45: 0 | F45: 0 | G45: 0 | H45: 700033
A46: 5. Otros activos financieros | C46: 0 | D46: 0 | E46: 0 | F46: 0 | G46: 0 | H46: 700034
A48: VII. ACTIVOS POR IMPUESTO DIFERIDO | C48: 0 | D48: 0 | E48: 0 | F48: 0 | G48: 0 | H48: 700035
A50: B) ACTIVO CORRIENTE | C50: =C52+C54+C62+C67+C76+C83+C90+C92 -> 318,860 | D50: =D52+D54+D62+D67+D76+D83+D90+D92 -> 367,858 | E50: =E52+E54+E62+E67+E76+E83+E90+E92 -> 424,838 | F50: =F52+F54+F62+F67+F76+F83+F90+F92 -> 472,320 | G50: =G52+G54+G62+G67+G76+G83+G90+G92 -> 434,267 | H50: 700036
A52: I. ACTIVOS NO CORRIENTES MANTENIDOS PARA LA VENTA | C52: 0 | D52: 0 | E52: 0 | F52: 0 | G52: 0 | H52: 700037
A54: II. EXISTENCIAS | C54: =C55+C56+C57+C58+C59+C60 -> 0 | D54: =D55+D56+D57+D58+D59+D60 -> 0 | E54: =E55+E56+E57+E58+E59+E60 -> 0 | F54: =F55+F56+F57+F58+F59+F60 -> 0 | G54: =G55+G56+G57+G58+G59+G60 -> 0 | H54: 700038
A55: 1. Bienes destinados a la actividad | C55: 0 | D55: 0 | E55: 0 | F55: 0 | G55: 0 | H55: 700039
A56: 2. Materias primas y otros aprovisionamientos | C56: 0 | D56: 0 | E56: 0 | F56: 0 | G56: 0 | H56: 700040
A57: 3. Productos en curso | C57: 0 | D57: 0 | E57: 0 | F57: 0 | G57: 0 | H57: 700041
A58: 4. Productos terminados | C58: 0 | D58: 0 | E58: 0 | F58: 0 | G58: 0 | H58: 700042
A59: 5. Subproductos, residuos y materiales recuperados | C59: 0 | D59: 0 | E59: 0 | F59: 0 | G59: 0 | H59: 700043
A60: 6. Anticipos a proveedores | C60: 0 | D60: 0 | E60: 0 | F60: 0 | G60: 0 | H60: 700044
A62: III. USUARIOS Y OTROS DEUDORES DE LA ACTIVIDAD PROPIA | C62: =C63+C64+C65 -> 0 | D62: =D63+D64+D65 -> 0 | E62: =E63+E64+E65 -> 0 | F62: =F63+F64+F65 -> 0 | G62: =G63+G64+G65 -> 0 | H62: 700045
A63: 1. Entidades del grupo | C63: 0 | D63: 0 | E63: 0 | F63: 0 | G63: 0 | H63: 700046
A64: 2. Entidades asociadas | C64: 0 | D64: 0 | E64: 0 | F64: 0 | G64: 0 | H64: 700047
A65: 3.Otros | C65: 0 | D65: 0 | E65: 0 | F65: 0 | G65: 0 | H65: 700048
A67: IV. DEUDORES COMERCIALES Y OTRAS CUENTAS A COBRAR | C67: =C68+C69+C70+C71+C72+C73+C74 -> 0 | D67: =D68+D69+D70+D71+D72+D73+D74 -> 0 | E67: =E68+E69+E70+E71+E72+E73+E74 -> 74,174 | F67: =F68+F69+F70+F71+F72+F73+F74 -> 86,590 | G67: =G68+G69+G70+G71+G72+G73+G74 -> 93,464 | H67: 700049
A68: 1. Clientes por ventas y prestaciones de servicios | C68: 0 | D68: 0 | E68: 0 | F68: 0 | G68: 0 | H68: 700050
A69: 2. Clientes, entidades del grupo y asociadas | C69: 0 | D69: 0 | E69: 0 | F69: 0 | G69: 0 | H69: 700051
A70: 3. Deudores varios | C70: 0 | D70: 0 | E70: 0 | F70: 0 | G70: 0 | H70: 700052
A71: 4. Personal | C71: 0 | D71: 0 | E71: 0 | F71: 0 | G71: 0 | H71: 700053
A72: 5. Activos por impuesto corriente | C72: 0 | D72: 0 | E72: 0 | F72: 0 | G72: 0 | H72: 700054
A73: 6. Otros créditos con las Administraciones Públicas | C73: 0 | D73: 0 | E73: 74,174 | F73: =86590 -> 86,590 | G73: 93,464 | H73: 700055
A74: 7. Fundadores por desembolsos exigidos | C74: 0 | D74: 0 | E74: 0 | F74: 0 | G74: 0 | H74: 700056
A76: V. INVERSIONES EN ENTIDADES DEL GRUPO Y ASOCIADAS | C76: =C77+C78+C79+C80+C81 -> 0 | D76: =D77+D78+D79+D80+D81 -> 0 | E76: =E77+E78+E79+E80+E81 -> 0 | F76: =F77+F78+F79+F80+F81 -> 0 | G76: =G77+G78+G79+G80+G81 -> 0 | H76: 700057
A77: 1. Instrumentos de patrimonio | C77: 0 | D77: 0 | E77: 0 | F77: 0 | G77: 0 | H77: 700058
A78: 2. Créditos a entidades | C78: 0 | D78: 0 | E78: 0 | F78: 0 | G78: 0 | H78: 700059
A79: 3. Valores representativos de deuda | C79: 0 | D79: 0 | E79: 0 | F79: 0 | G79: 0 | H79: 700060
A80: 4. Derivados | C80: 0 | D80: 0 | E80: 0 | F80: 0 | G80: 0 | H80: 700061
A81: 5. Otros activos financieros | C81: 0 | D81: 0 | E81: 0 | F81: 0 | G81: 0 | H81: 700062
A83: VI. INVERSIONES FINANCIERAS A CORTO PLAZO | C83: =C84+C85+C86+C87+C88 -> 0 | D83: =D84+D85+D86+D87+D88 -> 0 | E83: =E84+E85+E86+E87+E88 -> 664 | F83: =F84+F85+F86+F87+F88 -> 730 | G83: =G84+G85+G86+G87+G88 -> 803 | H83: 700063
A84: 1. Instrumentos de patrimonio | C84: 0 | D84: 0 | E84: 0 | F84: 0 | G84: 0 | H84: 700064
A85: 2. Créditos a entidades | C85: 0 | D85: 0 | E85: 0 | F85: 0 | G85: 0 | H85: 700065
A86: 3. Valores representativos de deuda | C86: 0 | D86: 0 | E86: 0 | F86: 0 | G86: 0 | H86: 700066
A87: 4. Derivados | C87: 0 | D87: 0 | E87: 0 | F87: 0 | G87: 0 | H87: 700067
A88: 5. Otros activos financieros | C88: 0 | D88: 0 | E88: 664 | F88: =+E88*1.1 -> 730 | G88: 803 | H88: 700068
A90: VII. PERIODIFICACIONES | C90: 0 | D90: 0 | E90: 0 | F90: 0 | G90: 0 | H90: 700069
A92: VIII. EFECTIVO Y OTROS ACTIVOS LíQUIDOS EQUIVALENTES | C92: =C93+C94 -> 318,860 | D92: =D93+D94 -> 367,858 | E92: =E93+E94 -> 350,000 | F92: =F93+F94 -> 385,000 | G92: =G93+G94 -> 340,000 | H92: 700070
A93: 1. Tesorería | C93: 318,860 | D93: 367,858 | E93: 350,000 | F93: =+E93*1.1 -> 385,000 | G93: 340,000 | H93: 700071
A94: 2. Otros activos líquidos equivalentes | C94: 0 | D94: 0 | E94: 0 | F94: 0 | G94: 0 | H94: 700072
A96: TOTAL ACTIVO | C96: =C6+C50 -> 343,511 | D96: =D6+D50 -> 388,772 | E96: =E6+E50 -> 459,838 | F96: =F6+F50 -> 508,320 | G96: =G6+G50 -> 471,367 | H96: 700073
A99: CHECK BALANCE | C99: =+IF(ROUND((C96-'PATRIMONIO NETO Y PASIVO'!C87), 0)=0,"OK","KO") -> OK | D99: =+IF(ROUND((D96-'PATRIMONIO NETO Y PASIVO'!D87), 0)=0,"OK","KO") -> OK | E99: =+IF(ROUND((E96-'PATRIMONIO NETO Y PASIVO'!E87), 0)=0,"OK","KO") -> OK | F99: =+IF(ROUND((F96-'PATRIMONIO NETO Y PASIVO'!F87), 0)=0,"OK","KO") -> OK | G99: =+IF(ROUND((G96-'PATRIMONIO NETO Y PASIVO'!G87), 0)=0,"OK","KO") -> OK | H99: =+IF(ROUND((H96-'PATRIMONIO NETO Y PASIVO'!H87), 0)=0,"OK","KO") -> KO

Sheet PATRIMONIO NETO Y PASIVO
A2: =IF('DATOS EMPRESA'!C4<>"",'DATOS EMPRESA'!C4,"") -> FUNDACIÓN CAMINO LEBANIEGO
C3: REAL | D3: PREVISIÓN
A4: BALANCE DE SITUACIÓN | C4: 2020 | D4: 2021 | E4: 2022 | F4: 2023 | G4: 2024
A6: A) PATRIMONIO NETO | C6: =C8+C24+C32 -> 286,870 | D6: =D8+D24+D32 -> 336,463 | E6: =E8+E24+E32 -> 410,638 | F6: =F8+F24+F32 -> 448,732 | G6: =G8+G24+G32 -> 430,035 | H6: 800000
A8: A1) FONDOS PROPIOS | C8: =C10+C14+C18+C22 -> 29,698 | D8: =D10+D14+D18+D22 -> 29,698 | E8: =E10+E14+E18+E22 -> 29,698 | F8: =F10+F14+F18+F22 -> 29,698 | G8: =G10+G14+G18+G22 -> 29,698 | H8: 800001
A10: I. DOTACIÓN FUNDACIONAL / FONDO SOCIAL | C10: =C11+C12 -> 30,000 | D10: =D11+D12 -> 30,000 | E10: =E11+E12 -> 30,000 | F10: =F11+F12 -> 30,000 | G10: =G11+G12 -> 30,000 | H10: 800002
A11: 1. Dotación fundacional/Fondo social | C11: 30,000 | D11: 30,000 | E11: 30,000 | F11: 30,000 | G11: 30,000 | H11: 800003
A12: 2. (Dotación fundacional no exigido/Fondo social no exigido) | C12: 0 | D12: 0 | E12: 0 | F12: 0 | G12: 0 | H12: 800004
A14: II. RESERVAS | C14: =C15+C16 -> -302 | D14: =D15+D16 -> -302 | E14: =E15+E16 -> -302 | F14: =F15+F16 -> -302 | G14: =G15+G16 -> -302 | H14: 800005
A15: 1. Estatutarias | C15: 0 | D15: 0 | E15: 0 | F15: 0 | G15: 0 | H15: 800006
A16: 2. Otras reservas | C16: -302 | D16: -302 | E16: -302 | F16: -302 | G16: -302 | H16: 800007
A18: III. EXCEDENTES DE EJERCICIOS ANTERIORES | C18: =C19+C20 -> 0 | D18: =D19+D20 -> 0 | E18: =E19+E20 -> 0 | F18: =F19+F20 -> 0 | G18: =G19+G20 -> 0 | H18: 800008
A19: 1. Remanente | C19: 0 | D19: 0 | E19: 0 | F19: 0 | G19: 0 | H19: 800009
A20: 2. (Excedentes negativos de ejercicios anteriores) | C20: 0 | D20: 0 | E20: 0 | F20: 0 | G20: 0 | H20: 800010
A22: IV. EXCEDENTE DEL EJERCICIO | C22: =EXPLOTACIÓN!C98 -> 0 | D22: =EXPLOTACIÓN!D98 -> 0 | E22: =EXPLOTACIÓN!E98 -> 0 | F22: =EXPLOTACIÓN!F98 -> -0 | G22: =EXPLOTACIÓN!G98 -> -0 | H22: 800011
A24: A2) AJUSTES POR CAMBIOS DE VALOR | C24: =C26+C28+C30 -> 0 | D24: =D26+D28+D30 -> 0 | E24: =E26+E28+E30 -> 0 | F24: =F26+F28+F30 -> 0 | G24: =G26+G28+G30 -> 0 | H24: 800012
A26: I. ACTIVOS FINANCIEROS DISPONIBLES PARA LA VENTA | D26: 0 | E26: 0 | F26: 0 | G26: 0 | H26: 800013
A28: II. OPERACIONES DE COBERTURA | C28: 0 | D28: 0 | E28: 0 | F28: 0 | G28: 0 | H28: 800014
A30: III. OTROS | C30: 0 | D30: 0 | E30: 0 | F30: 0 | G30: 0 | H30: 800015
A32: A3) SUBVENCIONES, DONACIONES Y LEGADOS RECIBIDOS | C32: =C34+C36 -> 257,172 | D32: =D34+D36 -> 306,765 | E32: =E34+E36 -> 380,940 | F32: =F34+F36 -> 419,034 | G32: =G34+G36 -> 400,337 | H32: 800016
A34: I. SUBVENCIONES | C34: 257,172 | D34: 306,765 | E34: 380,940 | F34: =+E34*1.1 -> 419,034 | G34: 400,337 | H34: 800017
A36: II. DONACIONES Y LEGADOS | C36: 0 | D36: 0 | E36: 0 | F36: 0 | G36: 0 | H36: 800018
A38: B) PASIVO NO CORRIENTE | C38: =C40+C46+C53+C55+C57 -> 0 | D38: =D40+D46+D53+D55+D57 -> 0 | E38: =E40+E46+E53+E55+E57 -> 0 | F38: =F40+F46+F53+F55+F57 -> 0 | G38: =G40+G46+G53+G55+G57 -> 0 | H38: 800019
A40: I. PROVISIONES A LARGO PLAZO | C40: =C41+C42+C43+C44 -> 0 | D40: =D41+D42+D43+D44 -> 0 | E40: =E41+E42+E43+E44 -> 0 | F40: =F41+F42+F43+F44 -> 0 | G40: =G41+G42+G43+G44 -> 0 | H40: 800020
A41: 1. Obligaciones por prestaciones a largo plazo al personal | C41: 0 | D41: 0 | E41: 0 | F41: 0 | G41: 0 | H41: 800021
A42: 2. Actuaciones medioambientales | C42: 0 | D42: 0 | E42: 0 | F42: 0 | G42: 0 | H42: 800022
A43: 3. Provisión por reestructuración | C43: 0 | D43: 0 | E43: 0 | F43: 0 | G43: 0 | H43: 800023
A44: 4. Otras provisiones | C44: 0 | D44: 0 | E44: 0 | F44: 0 | G44: 0 | H44: 800024
A46: II. DEUDAS A LARGO PLAZO | C46: =C47+C48+C49+C50+C51 -> 0 | D46: =D47+D48+D49+D50+D51 -> 0 | E46: =E47+E48+E49+E50+E51 -> 0 | F46: =F47+F48+F49+F50+F51 -> 0 | G46: =G47+G48+G49+G50+G51 -> 0 | H46: 800025
A47: 1. Obligaciones y otros valores negociables | C47: 0 | D47: 0 | E47: 0 | F47: 0 | G47: 0 | H47: 800026
A48: 2. Deudas con entidades de crédito | C48: 0 | D48: 0 | E48: 0 | F48: 0 | G48: 0 | H48: 800027
A49: 3. Acreedores por arrendamiento financiero | C49: 0 | D49: 0 | E49: 0 | F49: 0 | G49: 0 | H49: 800028
A50: 4. Derivados | C50: 0 | D50: 0 | E50: 0 | F50: 0 | G50: 0 | H50: 800029
A51: 5. Otros pasivos financieros | C51: 0 | D51: 0 | E51: 0 | F51: 0 | G51: 0 | H51: 800030
A53: III. DEUDAS CON ENTIDADES DEL GRUPO Y ASOCIADAS A LARGO PLAZO | C53: 0 | D53: 0 | E53: 0 | F53: 0 | G53: 0 | H53: 800031
A55: IV. PASIVOS POR IMPUESTO DIFERIDO | C55: 0 | D55: 0 | E55: 0 | F55: 0 | G55: 0 | H55: 800032
A57: V. PERIODIFICACIONES A LARGO PLAZO | C57: 0 | D57: 0 | E57: 0 | F57: 0 | G57: 0 | H57: 800054
A59: C) PASIVO CORRIENTE | C59: =C61+C63+C65+C72+C74+C76+C85 -> 56,641 | D59: =D61+D63+D65+D72+D74+D76+D85 -> 52,309 | E59: =E61+E63+E65+E72+E74+E76+E85 -> 49,200 | F59: =F61+F63+F65+F72+F74+F76+F85 -> 59,588 | G59: =G61+G63+G65+G72+G74+G76+G85 -> 41,332 | H59: 800033
A61: I. PASIVOS VINCULADOS CON ACTIVOS NO CORRIENTES MANTENIDOS PARA LA VENTA | C61: 0 | D61: 0 | E61: 0 | F61: 0 | G61: 0 | H61: 800034
A63: II. PROVISIONES A CORTO PLAZO | C63: 3,868 | D63: 3,868 | E63: 0 | F63: 0 | G63: 0 | H63: 800035
A65: III. DEUDAS A CORTO PLAZO | C65: =C66+C67+C68+C69+C70 -> 6,818 | D65: =D66+D67+D68+D69+D70 -> 6,818 | E65: =E66+E67+E68+E69+E70 -> 0 | F65: =F66+F67+F68+F69+F70 -> 0 | G65: =G66+G67+G68+G69+G70 -> 0 | H65: 800036
A66: 1. Obligaciones y otros valores negociables | C66: 0 | D66: 0 | E66: 0 | F66: 0 | G66: 0 | H66: 800037
A67: 2. Deudas con entidades de crédito | C67: 0 | D67: 0 | E67: 0 | F67: 0 | G67: 0 | H67: 800038
A68: 3. Acreedores por arrendamiento financiero | C68: 0 | D68: 0 | E68: 0 | F68: 0 | G68: 0 | H68: 800039
A69: 4. Derivados | C69: 0 | D69: 0 | E69: 0 | F69: 0 | G69: 0 | H69: 800040
A70: 5. Otros pasivos financieros | C70: 6,818 | D70: 6,818 | E70: 0 | F70: 0 | G70: 0 | H70: 800041
A72: IV. DEUDAS CON ENTIDADES DEL GRUPO Y ASOCIADAS | C72: 0 | D72: 0 | E72: 0 | F72: 0 | G72: 0 | H72: 800042
A74: V. BENEFICIARIOS - ACREEDORES | C74: 0 | D74: 0 | E74: 0 | F74: 0 | G74: 0 | H74: 800043
A76: VI. ACREEDORES COMERCIALES Y OTRAS CUENTAS A PAGAR | C76: =C77+C78+C79+C80+C81+C82+C83 -> 45,955 | D76: =D77+D78+D79+D80+D81+D82+D83 -> 41,623 | E76: =E77+E78+E79+E80+E81+E82+E83 -> 49,200 | F76: =F77+F78+F79+F80+F81+F82+F83 -> 59,588 | G76: =G77+G78+G79+G80+G81+G82+G83 -> 41,332 | H76: 800044
A77: 1. Proveedores | C77: 0 | D77: 0 | E77: 0 | F77: 0 | G77: 0 | H77: 800045
A78: 2. Proveedores, eentidades del grupo y asociadas | C78: 0 | D78: 0 | E78: 0 | F78: 0 | G78: 0 | H78: 800046
A79: 3. Acreedores varios | C79: 45,955 | D79: 41,623 | E79: 49,200 | F79: =+E79*1.21+56 -> 59,588 | G79: 41,332 | H79: 800047
A80: 4. Personal (remuneraciones pendientes de pago) | C80: 0 | D80: 0 | E80: 0 | F80: 0 | G80: 0 | H80: 800048
A81: 5. Pasivos por impuesto corriente | C81: 0 | D81: 0 | E81: 0 | F81: 0 | G81: 0 | H81: 800049
A82: 6. Otras deudas con las Administraciones Públicas | C82: 0 | D82: 0 | E82: 0 | F82: 0 | G82: 0 | H82: 800050
A83: 7. Anticipos recibidos por pedidos | C83: 0 | D83: 0 | E83: 0 | F83: 0 | G83: 0 | H83: 800051
A85: VII. PERIODIFICACIONES | C85: 0 | D85: 0 | E85: 0 | F85: 0 | G85: 0 | H85: 800052
A87: TOTAL PATRIMONIO NETO Y PASIVO | C87: =C6+C38+C59 -> 343,511 | D87: =D6+D38+D59 -> 388,772 | E87: =E6+E38+E59 -> 459,838 | F87: =F6+F38+F59 -> 508,320 | G87: =G6+G38+G59 -> 471,367 | H87: 800053

Sheet CODIGOS EMPRESA (hidden)
A1: INSTITUTO DE FINANZAS DE CANTABRIA (ICAF) | B1: 1 | C1: ICAF
A2: FUNDACIÓN MARQUÉS DE VALDECILLA | B2: 2 | C2: FMV
A3: FUNDACIÓN CÁNTABRA PARA LA SALUD Y EL BIENESTAR SOCIAL (FCSBS) | B3: 3 | C3: FCSBS
A4: FUNDACIÓN CENTRO TECNOLÓGICO EN LOGÍSTICA INTEGRAL CANTABRIA (CTL) | B4: 4 | C4: CTL
A5: FUNDACIÓN PARA LAS RELACIONES LABORALES DE CANTABRIA | B5: 5 | C5: FRL
A6: FUNDACIÓN FONDO CANTABRIA COOPERA | B6: 6 | C6: FFCC
A7: FUNDACIÓN FESTIVAL INTERNACIONAL DE SANTANDER (FIS) | B7: 7 | C7: FIS
A8: FUNDACIÓN INSTITUTO HIDRAÚLICA AMBIENTAL DE CANTABRIA | B8: 8 | C8: FIHAC
A9: FUNDACIÓN COMILLAS DEL ESPAÑOL Y LA CULTURA HISPÁNICA | B9: 9 | C9: FUNDACIONCOMILLAS
A10: FUNDACIÓN INSTITUTO DE INVESTIGACIÓN MARQUÉS DE VALDECILLA | B10: 10 | C10: IDIVAL
A11: 112 CANTABRIA, S.A.U. | B11: 11 | C11: 112
A12: GESTIÓN DE VIVIENDAS E INFRAESTRUCTURAS DE CANTABRIA, S.L. (GESVICAN, S.L.) | B12: 12 | C12: GESVICAN
A13: SOCIEDAD REGIONAL DE COORDINACIÓN FINANCIERA CON LAS EMPRESAS PÚBLICAS DE LA COMUNIDAD AUTÓNOMA DE CANTABRIA, S.L. (CEP CANTABRIA, S.L.) | B13: 13 | C13: CEPCANTABRIA
A14: MEDIO AMBIENTE, AGUA, RESIDUOS Y ENERGÍA DE CANTABRIA, S.A. (MARE, S.A.) | B14: 14 | C14: MARE
A15: SOCIEDAD REGIONAL CÁNTABRA DE PROMOCIÓN TURÍSTICA, S.A. (CANTUR, S.A.) | B15: 15 | C15: CANTUR
A16: EL SOPLAO, S.L. | B16: 16 | C16: ELSOPLAO
A17: SOCIEDAD REGIONAL DE EDUCACIÓN, CULTURA Y DEPORTE, S.L. | B17: 17 | C17: SRECD
A18: SOCIEDAD PARA EL DESARROLLO REGIONAL DE CANTABRIA, S.A. (SODERCAN, S.A.) | B18: 18 | C18: SODERCAN
A19: SUELO INDUSTRIAL DE CANTABRIA, S.L. (SICAN, S.L.) | B19: 19 | C19: SICAN
A20: SOCIEDAD GESTORA DEL PARQUE CIENTÍFICO-TECNOLÓGICO CANTABRIA, S.L. (PCTCAN, S.L.) | B20: 20 | C20: PCTCAN
A21: SOCIEDAD GESTORA INTERREG ESPACIO SUDOESTE EUROPEO (SOGIESE) | B21: 21 | C21: INTERREG
A22: HOSPITAL VIRTUAL VALDECILLA, S.L. | B22: 22 | C22: HVV
A23: SOCIEDAD DE ACTIVOS INMOBILIARIOS CAMPUS COMILLAS, S.L. (SAICC, S.L.) | B23: 23 | C23: SAICC
A24: CIUDAD DE TRANSPORTES DE SANTANDER, S.A. (CITRASA, S.A.) | B24: 24 | C24: CITRASA
A25: INVERSIONES CÁNTABRAS EMPRESARIALES, S.L. (ICE, S.L.) | B25: 25 | C25: ICE
A26: NUEVA PAPELERA DEL BESAYA, S.L. | B26: 26 | C26: NPB
A27: SOCIEDAD ARRENDADORA COMILLAS | B27: 27 | C27: SAC
A28: SANTANDER CENTRO ABIERTO, S.A. | B28: 31 | C28: SANTANDERCA
A29: TORRELAVEGA CENTRO ABIERTO, S.A. | B29: 32 | C29: TORRELAVEGACA
A30: SOCIEDAD AÑO JUBILAR 2017, S.L.U. | B30: 33 | C30: AÑOJUBILAR
A31: FUNDACIÓN CAMINO LEBANIEGO | B31: 34 | C31: FCL
A32: FONDO DE DERRIBOS DEL GOBIERNO DE CANTABRIA | B32: 36 | C32: FD
